fUSD/lending_fUSD_20260321
["ID","MTS","AMOUNT","RATE_DAILY","PERIOD"]
[408659658,1774068640599,-96.49340698,0.00015829,2]
[408659659,1774068640608,-56846.16987712,0.000159,2]
[408659660,1774068640621,-156.3383795,0.000159,3]
[408659661,1774068640630,-166.79221806,0.000159,3]
[408659662,1774068640642,-169.04694835,0.000159,3]
[408659663,1774068640652,-170.30851943,0.000159,3]
[408659664,1774068640662,-34234.51227314,0.000159,2]
[408659665,1774068640671,-300.0,0.000159,5]
[408659666,1774068640679,-223.54719898,0.000159,2]
[408659667,1774068640689,-4948.32341729,0.000159,2]
[408659668,1774068640698,-336.49039552,0.000159,2]
[408659669,1774068640707,-261.11930724,0.000159,2]
[408659670,1774068640717,-1046.99563584,0.00015902,2]
[408659671,1774068640727,-11612.5592323,0.00015942,2]
[408659672,1774068640736,-2975.4083499,0.00015942,2]
[408659673,1774068640746,-15000.0,0.0001595,2]
[408659674,1774068640757,-201.87,0.00015952,2]
[408659675,1774068640767,-344.5932573,0.00015973,2]
[408659676,1774068640776,-500.31653257,0.00015973,2]
[408659677,1774068640786,-501.36683039,0.00015973,2]
[408659678,1774068640796,-528.56877393,0.0001599,2]
[408659679,1774068640807,-528.56877393,0.0001599,2]
[408659680,1774068640818,-528.56877393,0.0001599,2]
[408659681,1774068640829,-151.0,0.00015997,2]
[408659682,1774068640839,-500.0,0.00015999,2]
[408659683,1774068640848,-500.0,0.00015999,2]
[408659684,1774068640858,-500.0,0.00015999,2]
[408659685,1774068640867,-500.0,0.00015999,2]
[408659686,1774068640876,-500.0,0.00015999,2]
[408659687,1774068640889,-500.0,0.00015999,2]
[408659688,1774068640898,-500.0,0.00015999,2]
[408659689,1774068640908,-500.0,0.00015999,2]
[408659690,1774068640918,-500.0,0.00015999,2]
[408659691,1774068640929,-500.0,0.00015999,2]
[408659692,1774068640938,-500.0,0.00015999,2]
[408659693,1774068640949,-500.0,0.00015999,2]
[408659694,1774068640959,-500.0,0.00015999,2]
[408659695,1774068640969,-500.0,0.00015999,2]
[408659696,1774068640978,-500.0,0.00015999,2]
[408659697,1774068640987,-500.0,0.00015999,2]
[408659698,1774068641001,-400.0,0.00015999,2]
[408659699,1774068641010,-201.25783909,0.00015999,2]
[408659700,1774068641020,-500.0,0.00015999,2]
[408659701,1774068641030,-366.55284407,0.00015999,2]
[408659702,1774068641040,-232.35802782,0.00015999,2]
[408659703,1774068641051,-504.04690408,0.00015999,2]
[408659704,1774068641060,-300.0,0.00015999,2]
[408659705,1774068641069,-150.0,0.00015999,2]
[408659706,1774068641079,-4389876.28551861,0.00016,2]
[408659707,1774068641099,-187337.44042568,0.00016,2]
[408659715,1774068646022,-283.32,0.00015582,2]
[408659716,1774068646034,-810.52366432,0.00015582,2]
[408659717,1774068646043,-1038.22552986,0.00015582,2]
[408659718,1774068646052,-1026.62895622,0.00015582,2]
[408659719,1774068646064,-1004.00169516,0.0001568,2]
[408659720,1774068646075,-158.24324313,0.00015843,2]
[408659721,1774068646086,-631941.23786322,0.00016,2]
[408659722,1774068646343,-757.27296642,0.00016,2]
[408659723,1774068646355,-11887.9362,0.00016,2]
[408659724,1774068646398,-12890.74490667,0.00016,2]
[408659728,1774068972960,-1667.802,0.0001568,2]
[408659729,1774068972984,-1067.81274068,0.0001568,2]
[408659730,1774068973007,-1107.87536357,0.0001568,2]
[408659731,1774068973030,-1053.52111487,0.0001568,2]
[408659732,1774068973054,-1105.57227936,0.0001568,2]
[408659733,1774068973075,-1141.18372774,0.0001568,2]
[408659734,1774068973097,-1044.57213854,0.0001568,2]
[408659735,1774068973120,-1010.87811135,0.0001568,2]
[408659736,1774068973142,-1056.33832816,0.0001568,2]
[408659737,1774068973164,-1206.70347661,0.0001568,2]
[408659738,1774068973189,-68787.74071912,0.0001575,2]
[408659739,1774069007132,-6888.0,0.0001575,2]
[408659740,1774069832410,-1.69121853,0.00015217,2]
[408659743,1774069838397,-148.30878147,0.00015217,2]
[408659744,1774069838408,-778.01,0.00015525,2]
[408659745,1774069838419,-2429.1968,0.0001558,2]
[408659746,1774069838430,-300.0,0.00015649,2]
[408659747,1774069838440,-153.0,0.00015649,2]
[408659748,1774069838450,-669.5583,0.0001565,2]
[408659749,1774069838459,-17973.80373032,0.0001565,2]
[408659750,1774069838479,-4345.20121288,0.0001565,2]
[408659751,1774069838510,-39780.9965568,0.0001565,2]
[408659752,1774069838520,-16617.29223789,0.000157,2]
[408659753,1774069838530,-154.79855358,0.00015723,2]
[408659754,1774069838539,-500.0,0.00015725,2]
[408659755,1774069838549,-500.0,0.00015725,2]
[408659756,1774069838558,-500.0,0.00015725,2]
[408659757,1774069838569,-500.0,0.00015725,2]
[408659758,1774069838578,-389.47246343,0.00015725,2]
[408659759,1774069838588,-500.0,0.00015725,2]
[408659760,1774069838598,-500.0,0.00015725,2]
[408659761,1774069838607,-500.0,0.00015725,2]
[408659762,1774069838617,-500.0,0.00015725,2]
[408659763,1774069838629,-500.0,0.00015725,2]
[408659764,1774069838639,-319.07941767,0.00015725,2]
[408659765,1774069838648,-500.0,0.00015778,2]
[408659766,1774069838658,-500.0,0.00015778,2]
[408659767,1774069838668,-453.7497826,0.00015778,2]
[408659769,1774069838678,-150.0,0.00015778,2]
[408659771,1774069838688,-150.0,0.00015778,2]
[408659773,1774069838698,-150.0,0.00015778,2]
[408659775,1774069838708,-150.0,0.00015778,2]
[408659777,1774069838717,-150.0,0.00015778,2]
[408659779,1774069838727,-212.81587714,0.00015778,2]
[408659780,1774069838737,-6328.55305715,0.000158,2]
[408659784,1774069840927,-259.39905185,0.000158,2]
[408659785,1774069840939,-946.05260061,0.000158,2]
[408659795,1774069843282,-562.39994,0.000158,2]
[408659798,1774069843295,-345.0,0.000158,2]
[408659800,1774069843499,-7618.62765039,0.000158,2]
[408659801,1774069843509,-3449.28,0.00015817,2]
[408659802,1774069843519,-158.24324313,0.00015899,2]
[408659803,1774069843529,-216.40757702,0.000159,2]
[408659804,1774069843538,-285.46557669,0.000159,2]
[408659805,1774069843548,-256.70914565,0.000159,2]
[408659806,1774069843558,-1209.09363202,0.00015901,2]
[408659807,1774069843568,-3778.60269019,0.0001596,2]
[408659808,1774069843579,-673.3310658,0.0001596,2]
[408659820,1774069846203,-565.1482818,0.0001596,2]
[408659821,1774069846213,-500.0,0.00015973,2]
[408659822,1774069846224,-608.50112522,0.00015973,2]
[408659823,1774069846235,-402.7710979,0.00015973,2]
[408659824,1774069846244,-210.30338749,0.00015973,2]
[408659825,1774069846254,-559.65581589,0.00015973,2]
[408659826,1774069846264,-501.06667076,0.00015973,2]
[408659827,1774069846275,-500.94019973,0.00015973,2]
[408659828,1774069846286,-191.80662728,0.00015973,2]
[408659829,1774069846297,-500.66468898,0.00015973,2]
[408659830,1774069846307,-501.02595757,0.00015973,2]
[408659831,1774069846318,-501.55404824,0.00015973,2]
[408659832,1774069846330,-501.15095378,0.00015973,2]
[408659833,1774069846339,-500.24825589,0.00015973,2]
[408659834,1774069846351,-501.5099809,0.00015973,2]
[408659835,1774069846361,-500.20783857,0.00015973,2]
[408659836,1774069846371,-500.71659233,0.00015973,2]
[408659837,1774069846381,-500.50755016,0.00015973,2]
[408659838,1774069846390,-501.03045518,0.00015973,2]
[408659839,1774069846400,-457.07805081,0.0001599,2]
[408659840,1774069846411,-165.4440686,0.0001599,2]
[408659841,1774069846422,-151.0,0.00015997,2]
[408659842,1774069846432,-151.0,0.00015997,2]
[408659843,1774069846441,-151.0,0.00015997,2]
[408659844,1774069846450,-500.0,0.00015998,2]
[408659845,1774069846460,-500.0,0.00015998,2]
[408659846,1774069846470,-500.0,0.00015998,2]
[408659847,1774069846480,-500.0,0.00015998,2]
[408659848,1774069846490,-500.0,0.00015999,2]
[408659849,1774069846500,-500.0,0.00015999,2]
[408659850,1774069846510,-500.0,0.00015999,2]
[408659851,1774069846521,-500.0,0.00015999,2]
[408659852,1774069846530,-500.0,0.00015999,2]
[408659853,1774069846539,-500.0,0.00015999,2]
[408659854,1774069846548,-500.0,0.00015999,2]
[408659855,1774069846558,-500.0,0.00015999,2]
[408659856,1774069846567,-419.03397916,0.00015999,2]
[408659857,1774069846577,-500.0,0.00015999,2]
[408659858,1774069846587,-3169.2674816,0.00015999,2]
[408659859,1774069846596,-511.55898747,0.00015999,2]
[408659860,1774069846607,-513.92773084,0.00015999,2]
[408659861,1774069846617,-431.8713349,0.00015999,2]
[408659862,1774069846626,-461.45026892,0.00015999,2]
[408659863,1774069846636,-500.0,0.00015999,2]
[408659864,1774069846645,-169.30780001,0.00015999,2]
[408659865,1774069846662,-330.69219999,0.00015999,2]
[408659866,1774069846671,-500.0,0.00015999,2]
[408659867,1774069846681,-500.0,0.00015999,2]
[408659868,1774069846690,-172.32486709,0.00015999,2]
[408659869,1774069846709,-327.67513291,0.00015999,2]
[408659870,1774069846719,-163.97886996,0.00015999,2]
[408659901,1774071031322,-180.63,0.00014695,2]
[408659902,1774071031331,-1932.9746225,0.00014734,2]
[408659907,1774071031380,-567.0253775,0.00014734,2]
[408659908,1774071031389,-250.0,0.00014734,2]
[408659909,1774071031398,-161.43,0.00014772,2]
[408659910,1774071031407,-280.4446225,0.00014801,2]
[408659911,1774071031419,-919.5553775,0.00014801,2]
[408659912,1774071031428,-20.82768264,0.00014801,2]
[408659913,1774071031439,-166.17231736,0.00014801,2]
[408659914,1774071031450,-150.0,0.00014802,2]
[408659915,1774071031460,-58.7752665,0.00014802,2]
[408659916,1774071031471,-298.86,0.00014802,2]
[408659917,1774071031483,-3031.8631592,0.00014802,2]
[408659918,1774071031498,-262.02687277,0.00014802,2]
[408659919,1774071031513,-12372.53301735,0.00014802,2]
[408659920,1774071031526,-592.07886631,0.00014802,2]
[408659921,1774071031538,-856.08682692,0.00014802,2]
[408659922,1774071031548,-636.65095903,0.00014802,2]
[408659923,1774071031573,-356.10021161,0.00014802,2]
[408659924,1774071031587,-3710.11543058,0.00014802,2]
[408659925,1774071031602,-607.56498033,0.00014802,2]
[408659927,1774071037455,-488.41431202,0.00014802,2]
[408659928,1774071037469,-436.75223375,0.00014802,2]
[408659929,1774071037512,-3677.18743529,0.00014802,2]
[408659930,1774071037525,-18712.28882834,0.00014802,2]
[408659931,1774071037536,-201.87,0.00014872,2]
[408659932,1774071037547,-4014.45,0.00014882,2]
[408659933,1774071037557,-150.0,0.0001492,2]
[408659939,1774071037853,-3905.81,0.00014921,2]
[408659940,1774071037872,-166.66,0.00015026,2]
[408659941,1774071037883,-166.66,0.00015343,2]
[408659942,1774071037894,-344.1,0.0001545,2]
[408659943,1774071037904,-577.0,0.0001549,2]
[408659944,1774071037915,-23048.6492,0.00015542,2]
[408659945,1774071037924,-50977.5959,0.0001555,2]
[408659946,1774071037933,-1000.0,0.0001555,2]
[408659947,1774071037943,-158.24324313,0.00015559,2]
[408659948,1774071037953,-1871.0,0.00015591,2]
[408659949,1774071037963,-205.24,0.00015649,2]
[408659950,1774071037973,-500.0,0.00015649,2]
[408659951,1774071037983,-500.0,0.00015649,2]
[408659952,1774071037997,-500.0,0.00015649,2]
[408659953,1774071038007,-166.66,0.00015659,2]
[408659954,1774071038017,-158.24324313,0.0001573,2]
[408659955,1774071038027,-200.0,0.00015817,2]
[408659956,1774071038038,-1104.88484829,0.0001584,2]
[408659957,1774071038047,-150.0,0.00015841,30]
[408659958,1774071038057,-577.0,0.0001586,2]
[408659959,1774071038067,-1871.0,0.00015868,2]
[408659960,1774071038077,-577.0,0.00015875,2]
[408659961,1774071038087,-983.30302072,0.000159,2]
[408659962,1774071038096,-2692.78621765,0.000159,2]
[408659963,1774071038107,-2227.18010692,0.000159,2]
[408659964,1774071038117,-2421.56522406,0.000159,2]
[408659965,1774071038127,-2459.98316225,0.000159,2]
[408659966,1774071038137,-151.65189971,0.000159,2]
[408659967,1774071038148,-157.32025817,0.000159,2]
[408659968,1774071038162,-280.658743,0.000159,2]
[408659969,1774071038172,-220.03641054,0.000159,2]
[408659970,1774071038182,-158.24324313,0.000159,2]
[408659971,1774071038192,-1466.32548434,0.000159,2]
[408659972,1774071038202,-3298.8822782,0.000159,2]
[408659973,1774071038214,-1046.99563584,0.00015902,2]
[408659974,1774071038224,-205.24,0.00015923,2]
[408659975,1774071038234,-577.0,0.00015942,2]
[408659976,1774071038244,-1871.0,0.00015949,2]
[408659977,1774071038254,-500.7227173,0.00015973,2]
[408659978,1774071038264,-500.43371768,0.00015973,2]
[408659979,1774071038274,-500.0,0.00015973,2]
[408659980,1774071038284,-500.10733677,0.00015973,2]
[408659981,1774071038294,-155.4067427,0.00015973,2]
[408659982,1774071038303,-500.67261463,0.00015973,2]
[408659983,1774071038313,-500.0,0.00015973,2]
[408659984,1774071038323,-500.31653257,0.00015973,2]
[408659985,1774071038332,-501.36683039,0.00015973,2]
[408659986,1774071038341,-500.23015738,0.00015973,2]
[408659987,1774071038351,-166.66,0.00015975,2]
[408659988,1774071038362,-792.3168704,0.0001599,2]
[408659989,1774071038371,-864.9476975,0.0001599,2]
[408659990,1774071038381,-2975.4083499,0.0001599,2]
[408659991,1774071038390,-933.57294207,0.0001599,2]
[408659992,1774071038400,-933.57294207,0.0001599,2]
[408659993,1774071038409,-933.57294207,0.0001599,2]
[408659994,1774071038419,-1871.0,0.00015996,2]
[408659995,1774071038429,-151.0,0.00015997,2]
[408659996,1774071038438,-151.0,0.00015997,2]
[408659997,1774071038450,-154.74032172,0.00015997,2]
[408659998,1774071038461,-336.02113004,0.00015999,2]
[408659999,1774071038470,-500.0,0.00015999,2]
[408660000,1774071038479,-500.0,0.00015999,2]
[408660001,1774071038489,-500.0,0.00015999,2]
[408660002,1774071038499,-500.0,0.00015999,2]
[408660003,1774071038508,-500.0,0.00015999,2]
[408660004,1774071038518,-500.0,0.00015999,2]
[408660005,1774071038527,-500.0,0.00015999,2]
[408660006,1774071038537,-500.0,0.00015999,2]
[408660007,1774071038546,-500.0,0.00015999,2]
[408660008,1774071038556,-339.00928154,0.00015999,2]
[408660009,1774071038565,-500.0,0.00015999,2]
[408660010,1774071038575,-500.0,0.00015999,2]
[408660011,1774071038585,-500.0,0.00015999,2]
[408660012,1774071038595,-500.0,0.00015999,2]
[408660013,1774071038604,-500.0,0.00015999,2]
[408660014,1774071038614,-191.17447614,0.00015999,2]
[408660015,1774071038624,-500.0,0.00015999,2]
[408660016,1774071038633,-451.10094293,0.00015999,2]
[408660017,1774071038643,-221.96774222,0.00015999,2]
[408660018,1774071038653,-151.21407122,0.00015999,2]
[408660019,1774071038664,-150.0,0.00015999,2]
[408660020,1774071038673,-500.0,0.00015999,2]
[408660021,1774071038685,-500.0,0.00015999,2]
[408660022,1774071038695,-500.0,0.00015999,2]
[408660023,1774071038705,-500.0,0.00015999,2]
[408660024,1774071038714,-500.0,0.00015999,2]
[408660025,1774071038726,-500.0,0.00015999,2]
[408660026,1774071038736,-500.0,0.00015999,2]
[408660027,1774071038745,-500.0,0.00015999,2]
[408660028,1774071038755,-500.0,0.00015999,2]
[408660029,1774071038765,-500.0,0.00015999,2]
[408660030,1774071038775,-500.0,0.00015999,2]
[408660031,1774071038785,-500.0,0.00015999,2]
[408660032,1774071038797,-500.0,0.00015999,2]
[408660033,1774071038807,-563.08619138,0.00015999,2]
[408660034,1774071038818,-500.0,0.00015999,2]
[408660035,1774071038828,-500.0,0.00015999,2]
[408660036,1774071038838,-500.0,0.00015999,2]
[408660037,1774071038848,-500.0,0.00015999,2]
[408660038,1774071038856,-500.0,0.00015999,2]
[408660039,1774071038865,-500.0,0.00015999,2]
[408660040,1774071038875,-500.0,0.00015999,2]
[408660041,1774071038884,-500.0,0.00015999,2]
[408660042,1774071038894,-500.0,0.00015999,2]
[408660043,1774071038903,-500.0,0.00015999,2]
[408660044,1774071038913,-500.0,0.00015999,2]
[408660045,1774071038923,-500.0,0.00015999,2]
[408660046,1774071038932,-500.0,0.00015999,2]
[408660047,1774071038942,-500.0,0.00015999,2]
[408660048,1774071038952,-500.0,0.00015999,2]
[408660049,1774071038962,-500.0,0.00015999,2]
[408660050,1774071038971,-500.0,0.00015999,2]
[408660051,1774071038981,-500.0,0.00015999,2]
[408660052,1774071038991,-500.0,0.00015999,2]
[408660053,1774071039000,-500.0,0.00015999,2]
[408660054,1774071039010,-500.0,0.00015999,2]
[408660055,1774071039019,-500.0,0.00015999,2]
[408660056,1774071039029,-106779.58483427,0.00016,2]
[408660066,1774071039709,-1218952.01005974,0.00016,2]
[408660068,1774071039719,-151.0,0.00016,2]
[408660070,1774071039730,-200.0,0.00016,2]
[408660072,1774071039741,-1000.0,0.00016,2]
[408660074,1774071039751,-1000.0,0.00016,2]
[408660076,1774071039760,-1000.0,0.00016,2]
[408660078,1774071039770,-1000.0,0.00016,2]
[408660079,1774071039780,-1000.0,0.00016,2]
[408660081,1774071039789,-1000.0,0.00016,2]
[408660083,1774071039799,-1000.0,0.00016,2]
[408660084,1774071039808,-1000.0,0.00016,2]
[408660085,1774071039818,-1000.0,0.00016,2]
[408660086,1774071039828,-1000.0,0.00016,2]
[408660087,1774071039838,-1000.0,0.00016,2]
[408660088,1774071039847,-1000.0,0.00016,2]
[408660089,1774071039858,-1000.0,0.00016,2]
[408660090,1774071039868,-3348479.64143793,0.00016,2]
[408660091,1774071040213,-655.08965108,0.00016,2]
[408660093,1774071042486,-1163.69555954,0.00016,2]
[408660094,1774071042544,-393.71766202,0.00016,2]
[408660124,1774071045390,-29521.25085867,0.00016,2]
[408660150,1774072231580,-782.0,0.00011849,2]
[408660151,1774072231635,-176.25498991,0.00011849,2]
[408660152,1774072231645,-5024.6056,0.00011849,2]
[408660153,1774072231655,-250.0,0.00011899,2]
[408660154,1774072231664,-300.0,0.00011949,2]
[408660155,1774072231674,-657.0,0.00011949,2]
[408660156,1774072231683,-196.09,0.00012051,2]
[408660157,1774072231693,-2512.3028,0.00012441,2]
[408660158,1774072231702,-782.0,0.00012486,2]
[408660159,1774072231713,-250.0,0.00013034,2]
[408660160,1774072231724,-523.0,0.00013111,2]
[408660161,1774072231733,-837.4342,0.00013626,2]
[408660162,1774072231743,-378.4,0.00014231,2]
[408660164,1774072231752,-338.73,0.00014417,2]
[408660166,1774072231762,-500.0,0.00014551,2]
[408660167,1774072231771,-300.0,0.00014601,2]
[408660168,1774072231781,-1200.0,0.00014601,2]
[408660169,1774072231790,-212.0,0.00014601,2]
[408660170,1774072231800,-70606.9626,0.00014602,2]
[408660172,1774072231809,-161.27759149,0.00014673,2]
[408660173,1774072231819,-611.17112057,0.00014673,2]
[408660175,1774072231829,-500.0,0.00014701,2]
[408660176,1774072231838,-387.48942899,0.00014701,2]
[408660177,1774072231847,-376.55659633,0.00014701,2]
[408660178,1774072231857,-601.23330052,0.00014701,2]
[408660179,1774072231867,-500.0,0.00014701,2]
[408660180,1774072231876,-500.0,0.00014701,2]
[408660181,1774072231885,-500.0,0.00014701,2]
[408660182,1774072231895,-500.0,0.00014701,2]
[408660183,1774072231905,-500.0,0.00014701,2]
[408660184,1774072231915,-500.0,0.00014701,2]
[408660185,1774072231924,-500.0,0.00014701,2]
[408660186,1774072231935,-500.0,0.00014701,2]
[408660187,1774072231948,-500.0,0.00014701,2]
[408660188,1774072231961,-500.0,0.00014701,2]
[408660189,1774072231971,-500.0,0.00014701,2]
[408660190,1774072231980,-500.0,0.00014701,2]
[408660191,1774072231991,-500.0,0.00014701,2]
[408660192,1774072232001,-500.0,0.00014701,2]
[408660193,1774072232011,-500.0,0.00014701,2]
[408660194,1774072232021,-500.0,0.00014701,2]
[408660195,1774072232031,-500.0,0.00014701,2]
[408660196,1774072232040,-500.0,0.00014701,2]
[408660197,1774072232050,-500.0,0.00014701,2]
[408660198,1774072232060,-500.0,0.00014701,2]
[408660199,1774072232261,-500.0,0.00014701,2]
[408660200,1774072232272,-500.0,0.00014701,2]
[408660201,1774072232283,-500.0,0.00014701,2]
[408660202,1774072232292,-500.0,0.00014701,2]
[408660203,1774072232303,-500.0,0.00014701,2]
[408660204,1774072232314,-500.0,0.00014701,2]
[408660205,1774072232323,-500.0,0.00014701,2]
[408660206,1774072232332,-500.0,0.00014701,2]
[408660207,1774072232342,-500.0,0.00014701,2]
[408660208,1774072232351,-500.0,0.00014701,2]
[408660209,1774072232360,-500.0,0.00014701,2]
[408660210,1774072232370,-500.0,0.00014701,2]
[408660211,1774072232379,-547.63983781,0.00014701,2]
[408660212,1774072232389,-500.0,0.00014701,2]
[408660213,1774072232398,-500.0,0.00014701,2]
[408660214,1774072232408,-500.0,0.00014701,2]
[408660215,1774072232417,-500.0,0.00014701,2]
[408660216,1774072232427,-500.0,0.00014701,2]
[408660217,1774072232437,-205.24705304,0.00014701,2]
[408660218,1774072232447,-500.0,0.00014701,2]
[408660219,1774072232456,-130787.60076815,0.00014702,2]
[408660221,1774072237603,-378.29286825,0.00014702,2]
[408660222,1774072237616,-8412.85779777,0.00014702,2]
[408660223,1774072237657,-11181.19376746,0.00014702,2]
[408660224,1774072237672,-114892.14659837,0.00014702,2]
[408660225,1774072237682,-500.0,0.00014773,2]
[408660226,1774072237692,-500.0,0.00014773,2]
[408660227,1774072237702,-503.2708626,0.00014773,2]
[408660228,1774072237712,-500.39343918,0.00014773,2]
[408660229,1774072237722,-5165.59383703,0.00015067,2]
[408660230,1774072237732,-3240.0,0.00015167,2]
[408660231,1774072237743,-200.0,0.00015167,2]
[408660232,1774072237752,-4849.0,0.00015419,2]
[408660233,1774072237762,-309.04,0.00015507,2]
[408660234,1774072237773,-500.0,0.00015649,2]
[408660235,1774072237783,-200.0,0.000157,5]
[408660236,1774072237793,-1000.0,0.000158,2]
[408660237,1774072237802,-400.0,0.000158,5]
[408660238,1774072237813,-2000.0,0.0001589,2]
[408660239,1774072237822,-309.04,0.00015895,2]
[408660240,1774072237832,-600.0,0.000159,5]
[408660242,1774072237842,-187.10582866,0.000159,2]
[408660244,1774072237851,-188.60263758,0.000159,2]
[408660245,1774072237862,-501.14781229,0.00015973,2]
[408660246,1774072237873,-500.0,0.00015999,2]
[408660247,1774072237883,-500.0,0.00015999,2]
[408660249,1774072237893,-503.01706708,0.00015999,2]
[408660251,1774072237903,-194.19948503,0.00015999,2]
[408660252,1774072237913,-500.0,0.00015999,2]
[408660253,1774072237924,-425.73651327,0.00015999,2]
[408660254,1774072237935,-225.0848279,0.00015999,2]
[408660255,1774072237944,-500.0,0.00015999,2]
[408660256,1774072237957,-253.15634693,0.00015999,2]
[408660257,1774072237969,-500.0,0.00015999,2]
[408660258,1774072237981,-500.0,0.00015999,2]
[408660259,1774072237994,-500.0,0.00015999,2]
[408660260,1774072238005,-500.0,0.00015999,2]
[408660261,1774072238014,-500.0,0.00015999,2]
[408660262,1774072238024,-1670.0,0.00016,5]
[408660263,1774072238034,-1612.0,0.00016,5]
[408660264,1774072238044,-58358.22208052,0.00016,2]
[408660265,1774072238056,-694.2471131,0.00016,2]
[408660266,1774072238072,-901.16,0.00016,2]
[408660267,1774072238090,-4385.55298167,0.00016,2]
[408660268,1774072238102,-12108.11290017,0.00016,2]
[408660269,1774072238114,-2542.91899349,0.00016,2]
[408660270,1774072238125,-1187.75083997,0.00016,2]
[408660271,1774072240007,-610.45389952,0.00016,2]
[408660273,1774072240281,-876.66177839,0.00016,2]
[408660280,1774072242943,-2446.61604084,0.00016,2]
[408660281,1774072242955,-1937.27221359,0.00016,2]
[408660282,1774072242969,-3575.52001996,0.00016,2]
[408660290,1774072245555,-2924.74325605,0.00016,2]
[408660327,1774073347123,-362.72,0.00012336,2]
[408660328,1774073347143,-600.0,0.00013727,2]
[408660329,1774073347165,-480.0,0.00013925,2]
[408660330,1774073347185,-2500.0,0.00013926,2]
[408660331,1774073347207,-1601.717906,0.00013926,2]
[408660332,1774073431699,-166.66,0.00014148,2]
[408660333,1774073431715,-600.0,0.00014223,2]
[408660334,1774073431730,-300.0,0.00014297,2]
[408660335,1774073431743,-600.0,0.00014352,2]
[408660336,1774073431757,-600.0,0.00014352,2]
[408660337,1774073431770,-600.0,0.00014352,2]
[408660338,1774073431780,-300.0,0.00014405,2]
[408660339,1774073431789,-225.20622666,0.00014405,2]
[408660340,1774073431798,-166.66,0.00014446,2]
[408660341,1774073432013,-150.0,0.00014465,2]
[408660342,1774073432023,-69841.3067,0.00014501,2]
[408660343,1774073432032,-1042.03210009,0.00014505,2]
[408660345,1774073437727,-682.60789991,0.00014505,2]
[408660346,1774073437737,-161.43,0.00014505,2]
[408660347,1774073437749,-659.83339612,0.00014602,2]
[408660348,1774073437783,-317.18344497,0.00014602,2]
[408660349,1774073437844,-44847.59162871,0.00014602,2]
[408660350,1774073437855,-317.63550471,0.00014602,2]
[408660351,1774073437867,-4149.30442033,0.00014602,2]
[408660352,1774073437878,-524.0,0.00014602,2]
[408660508,1774073440118,-10745.983256,0.00014602,2]
[408660509,1774073440173,-1741.12838713,0.00014602,2]
[408660510,1774073440342,-9730.98986203,0.00014602,2]
[408660511,1774073440352,-500.0,0.00014673,2]
[408660512,1774073440361,-166.66,0.00014744,2]
[408660513,1774073440372,-200.0,0.00014831,2]
[408660514,1774073440381,-166.66,0.00015042,2]
[408660515,1774073440390,-620.09069701,0.00015069,2]
[408660516,1774073440400,-6926.41,0.00015076,2]
[408660517,1774073440410,-360.26,0.00015103,2]
[408660518,1774073440419,-500.0,0.00015199,2]
[408660519,1774073440429,-500.0,0.00015199,2]
[408660520,1774073440438,-500.0,0.00015199,2]
[408660521,1774073440447,-500.0,0.00015199,2]
[408660522,1774073440457,-500.0,0.00015199,2]
[408660523,1774073440466,-500.0,0.00015199,2]
[408660524,1774073440475,-500.0,0.00015199,2]
[408660525,1774073440485,-500.0,0.00015199,2]
[408660526,1774073440494,-500.0,0.00015199,2]
[408660527,1774073440504,-500.0,0.00015199,2]
[408660528,1774073440513,-500.0,0.00015199,2]